[Event "FIDE World Rapid Chess Championship 2021"]
[White "Halkias, Stelios"]
[Black "Martirosyan, Haik M."]
[WhiteFideId "4201809"]
[BlackFideId "13306553"]
[WhiteElo "2576"]
[BlackElo "2377"]
[Result "0-1"]
[Round "05"]
[TimeControl "900+10"]
[Date "2021.12.26"]
[WhiteClock "0:00:20"]
[BlackClock "0:03:06"]

1. Nf3 {[%clk 0:00:21]}  Nf6 {[%clk 0:04:36]} 2. c4 {[%clk 0:00:21]}  e6 {[%clk 0:04:36]} 3. g3 {[%clk 0:00:21]}  d5 {[%clk 0:04:36]} 4. d4 {[%clk 0:00:21]}  Bb4+ {[%clk 0:04:36]} 5. Nbd2 {[%clk 0:00:21]}  O-O {[%clk 0:04:36]} 6. Bg2 {[%clk 0:00:21]}  b6 {[%clk 0:04:36]} 7. O-O {[%clk 0:00:21]}  Bb7 {[%clk 0:04:36]} 8. Ne5 {[%clk 0:00:21]}  a5 {[%clk 0:04:36]} 9. cxd5 {[%clk 0:00:21]}  Bxd5 {[%clk 0:04:36]} 10. Bxd5 {[%clk 0:00:21]}  Qxd5 {[%clk 0:04:36]} 11. Ndf3 {[%clk 0:00:21]}  Bd6 {[%clk 0:04:36]} 12. Qc2 {[%clk 0:00:21]}  Nbd7 {[%clk 0:04:36]} 13. e4 {[%clk 0:00:21]}  Qb7 {[%clk 0:04:36]} 14. Re1 {[%clk 0:00:21]}  Bb4 {[%clk 0:04:36]} 15. Nxd7 {[%clk 0:00:21]}  Nxd7 {[%clk 0:04:36]} 16. Re2 {[%clk 0:00:21]}  Rac8 {[%clk 0:04:36]} 17. Qd3 {[%clk 0:00:21]}  Be7 {[%clk 0:04:36]} 18. Bf4 {[%clk 0:00:21]}  Rfd8 {[%clk 0:04:36]} 19. Rd1 {[%clk 0:00:21]}  h6 {[%clk 0:04:36]} 20. Kg2 {[%clk 0:00:21]}  Bf8 {[%clk 0:04:36]} 21. Qc2 {[%clk 0:00:21]}  Nf6 {[%clk 0:04:36]} 22. Be5 {[%clk 0:00:21]}  Ng4 {[%clk 0:04:36]} 23. h3 {[%clk 0:00:21]}  Nxe5 {[%clk 0:04:36]} 24. dxe5 {[%clk 0:00:21]}  b5 {[%clk 0:04:36]} 25. Red2 {[%clk 0:00:21]}  Rxd2 {[%clk 0:04:36]} 26. Rxd2 {[%clk 0:00:21]}  c5 {[%clk 0:04:36]} 27. a4 {[%clk 0:00:21]}  c4 {[%clk 0:04:36]} 28. axb5 {[%clk 0:00:21]}  Qxb5 {[%clk 0:04:36]} 29. Rd4 {[%clk 0:00:21]}  a4 {[%clk 0:04:36]} 30. Nd2 {[%clk 0:00:21]}  c3 {[%clk 0:04:36]} 31. bxc3 {[%clk 0:00:21]}  a3 {[%clk 0:04:36]} 32. Qa4 {[%clk 0:00:21]}  Qxe5 {[%clk 0:04:36]} 33. Nc4 {[%clk 0:00:21]}  Qc5 {[%clk 0:04:36]} 34. Qa6 {[%clk 0:00:21]}  Rc7 {[%clk 0:03:06]} 35. Rd8 {[%clk 0:00:20]}  Ra7 {[%clk 0:03:06]} 36. Qd6 {[%clk 0:00:20]}  Qxd6 {[%clk 0:03:06]} 37. Nxd6 {[%clk 0:00:20]}  a2 {[%clk 0:03:06]} 0-1


[Site "http://www.Chess.com"]

[Event "FIDE World Rapid Chess Championship 2021"]
[White "Ter-Sahakyan, Samvel"]
[Black "Sindarov, Javokhir"]
[WhiteFideId "13302531"]
[BlackFideId "14205483"]
[WhiteElo "2573"]
[BlackElo "2353"]
[Result "0-1"]
[Round "05"]
[TimeControl "900+10"]
[Date "2021.12.26"]
[WhiteClock "0:00:18"]
[BlackClock "0:09:17"]

1. e4 {[%clk 0:00:18]}  e5 {[%clk 0:09:17]} 2. Nf3 {[%clk 0:00:18]}  Nc6 {[%clk 0:09:17]} 3. Bb5 {[%clk 0:00:18]}  a6 {[%clk 0:09:17]} 4. Ba4 {[%clk 0:00:18]}  Nf6 {[%clk 0:09:17]} 5. O-O {[%clk 0:00:18]}  Nxe4 {[%clk 0:09:17]} 6. d4 {[%clk 0:00:18]}  b5 {[%clk 0:09:17]} 7. Bb3 {[%clk 0:00:18]}  d5 {[%clk 0:09:17]} 8. dxe5 {[%clk 0:00:18]}  Be6 {[%clk 0:09:17]} 9. Nbd2 {[%clk 0:00:18]}  Nc5 {[%clk 0:09:17]} 10. c3 {[%clk 0:00:18]}  Be7 {[%clk 0:09:17]} 11. Bc2 {[%clk 0:00:18]}  d4 {[%clk 0:09:17]} 12. Nb3 {[%clk 0:00:18]}  d3 {[%clk 0:09:17]} 13. Bb1 {[%clk 0:00:18]}  Nxb3 {[%clk 0:09:17]} 14. axb3 {[%clk 0:00:18]}  Bf5 {[%clk 0:09:17]} 15. Be3 {[%clk 0:00:18]}  O-O {[%clk 0:09:17]} 16. Bd4 {[%clk 0:00:18]}  Qd5 {[%clk 0:09:17]} 17. Re1 {[%clk 0:00:18]}  Rfd8 {[%clk 0:09:17]} 18. h3 {[%clk 0:00:18]}  d2 {[%clk 0:09:17]} 19. Re2 {[%clk 0:00:18]}  Bxb1 {[%clk 0:09:17]} 20. Rxb1 {[%clk 0:00:18]}  Nxd4 {[%clk 0:09:17]} 21. Nxd4 {[%clk 0:00:18]}  Bg5 {[%clk 0:09:17]} 22. b4 {[%clk 0:00:18]}  a5 {[%clk 0:09:17]} 23. bxa5 {[%clk 0:00:18]}  c5 {[%clk 0:09:17]} 24. Nb3 {[%clk 0:00:18]}  b4 {[%clk 0:09:17]} 25. g3 {[%clk 0:00:18]}  bxc3 {[%clk 0:09:17]} 26. bxc3 {[%clk 0:00:18]}  Qd3 {[%clk 0:09:17]} 27. Ra1 {[%clk 0:00:18]}  Qxc3 {[%clk 0:09:17]} 28. a6 {[%clk 0:00:18]}  c4 {[%clk 0:09:17]} 29. f4 {[%clk 0:00:18]}  cxb3 {[%clk 0:09:17]} 0-1


[Site "http://www.Chess.com"]

[Event "FIDE World Rapid Chess Championship 2021"]
[White "Vakhidov, Jakhongir"]
[Black "Teclaf, Pawel"]
[WhiteFideId "14201801"]
[BlackFideId "1185934"]
[WhiteElo "2566"]
[BlackElo "2345"]
[Result "1/2-1/2"]
[Round "05"]
[TimeControl "900+10"]
[Date "2021.12.26"]
[WhiteClock "0:00:18"]
[BlackClock "0:00:40"]

1. c4 {[%clk 0:00:57]}  b6 {[%clk 0:00:57]} 2. Nc3 {[%clk 0:00:57]}  Bb7 {[%clk 0:00:57]} 3. d4 {[%clk 0:00:57]}  e6 {[%clk 0:00:57]} 4. e4 {[%clk 0:00:57]}  Bb4 {[%clk 0:00:57]} 5. f3 {[%clk 0:00:57]}  Ne7 {[%clk 0:00:57]} 6. Bd3 {[%clk 0:00:57]}  e5 {[%clk 0:00:57]} 7. a3 {[%clk 0:00:57]}  Bxc3+ {[%clk 0:00:57]} 8. bxc3 {[%clk 0:00:57]}  Nbc6 {[%clk 0:00:57]} 9. Ne2 {[%clk 0:00:57]}  Na5 {[%clk 0:00:57]} 10. dxe5 {[%clk 0:00:57]}  O-O {[%clk 0:00:57]} 11. Bg5 {[%clk 0:00:57]}  d6 {[%clk 0:00:57]} 12. Bc2 {[%clk 0:00:57]}  h6 {[%clk 0:00:57]} 13. Bh4 {[%clk 0:00:57]}  Nxc4 {[%clk 0:00:57]} 14. exd6 {[%clk 0:00:57]}  cxd6 {[%clk 0:00:57]} 15. Qd4 {[%clk 0:00:57]}  Rc8 {[%clk 0:00:57]} 16. O-O {[%clk 0:00:57]}  Qc7 {[%clk 0:00:57]} 17. Bb3 {[%clk 0:00:57]}  Rfe8 {[%clk 0:00:57]} 18. Bg3 {[%clk 0:00:57]}  Nf5 {[%clk 0:00:57]} 19. exf5 {[%clk 0:00:57]}  Rxe2 {[%clk 0:00:57]} 20. Rfe1 {[%clk 0:00:57]}  Rd2 {[%clk 0:00:57]} 21. Qf4 {[%clk 0:00:57]}  Qc5+ {[%clk 0:00:57]} 22. Kh1 {[%clk 0:00:57]}  Rd3 {[%clk 0:00:57]} 23. f6 {[%clk 0:00:57]}  Rxc3 {[%clk 0:00:57]} 24. fxg7 {[%clk 0:00:57]}  Qg5 {[%clk 0:00:57]} 25. Bxc4 {[%clk 0:00:57]}  Qxf4 {[%clk 0:00:57]} 26. Bxf4 {[%clk 0:00:57]}  R3xc4 {[%clk 0:00:57]} 27. Bxd6 {[%clk 0:00:57]}  Kxg7 {[%clk 0:00:57]} 28. h3 {[%clk 0:00:57]}  Bd5 {[%clk 0:00:40]} 29. Rad1 {[%clk 0:00:23]}  Be6 {[%clk 0:00:40]} 30. f4 {[%clk 0:00:23]}  Rc2 {[%clk 0:00:40]} 31. Kh2 {[%clk 0:00:23]}  Kh7 {[%clk 0:00:40]} 32. Re3 {[%clk 0:00:23]}  Rg8 {[%clk 0:00:40]} 33. Rg3 {[%clk 0:00:18]}  Rxg3 {[%clk 0:00:40]} 34. Kxg3 {[%clk 0:00:18]}  Bd7 {[%clk 0:00:40]} 35. Bb4 {[%clk 0:00:18]}  Bc6 {[%clk 0:00:40]} 36. Rd2 {[%clk 0:00:18]}  Rxd2 {[%clk 0:00:40]} 1/2-1/2


[Site "http://www.Chess.com"]

[Event "FIDE World Rapid Chess Championship 2021"]
[White "Socko, Bartosz"]
[Black "Klimkowski, Jan"]
[WhiteFideId "1107038"]
[BlackFideId "21856222"]
[WhiteElo "2562"]
[BlackElo "2211"]
[Result "1-0"]
[Round "05"]
[TimeControl "900+10"]
[Date "2021.12.26"]
[WhiteClock "0:12:08"]
[BlackClock "0:10:46"]

1. d4 {[%clk 0:13:47]}  Nf6 {[%clk 0:11:15]} 2. c4 {[%clk 0:13:47]}  e6 {[%clk 0:11:15]} 3. Nf3 {[%clk 0:13:47]}  Bb4+ {[%clk 0:11:15]} 4. Bd2 {[%clk 0:13:47]}  Qe7 {[%clk 0:11:15]} 5. g3 {[%clk 0:13:47]}  Bxd2+ {[%clk 0:11:15]} 6. Qxd2 {[%clk 0:13:47]}  Nc6 {[%clk 0:11:15]} 7. Nc3 {[%clk 0:13:47]}  d5 {[%clk 0:11:15]} 8. cxd5 {[%clk 0:13:47]}  exd5 {[%clk 0:11:15]} 9. Bg2 {[%clk 0:13:47]}  Bg4 {[%clk 0:11:15]} 10. O-O {[%clk 0:13:47]}  O-O-O {[%clk 0:11:15]} 11. Rfd1 {[%clk 0:13:47]}  Kb8 {[%clk 0:11:15]} 12. Rac1 {[%clk 0:13:47]}  Rhe8 {[%clk 0:11:15]} 13. Qf4 {[%clk 0:13:47]}  h6 {[%clk 0:11:15]} 14. h4 {[%clk 0:13:47]}  Bc8 {[%clk 0:11:15]} 15. a3 {[%clk 0:13:47]}  Ne4 {[%clk 0:11:15]} 16. Qe3 {[%clk 0:13:47]}  Qf6 {[%clk 0:11:15]} 17. Ne5 {[%clk 0:13:47]}  Nxe5 {[%clk 0:11:15]} 18. dxe5 {[%clk 0:13:47]}  Nxc3 {[%clk 0:11:15]} 19. exf6 {[%clk 0:13:47]}  Nxe2+ {[%clk 0:11:15]} 20. Qxe2 {[%clk 0:13:47]}  Rxe2 {[%clk 0:11:15]} 21. fxg7 {[%clk 0:13:47]}  c6 {[%clk 0:11:15]} 22. Re1 {[%clk 0:13:47]}  Rxe1+ {[%clk 0:11:15]} 23. Rxe1 {[%clk 0:13:47]}  Be6 {[%clk 0:11:15]} 24. Re5 {[%clk 0:13:47]}  Rg8 {[%clk 0:11:15]} 25. Rh5 {[%clk 0:13:47]}  Rxg7 {[%clk 0:11:15]} 26. Rxh6 {[%clk 0:13:47]}  d4 {[%clk 0:11:15]} 27. Kf1 {[%clk 0:13:47]}  Rg8 {[%clk 0:11:15]} 28. Ke2 {[%clk 0:13:47]}  Bc4+ {[%clk 0:11:15]} 29. Kd2 {[%clk 0:13:47]}  Re8 {[%clk 0:11:15]} 30. Bf3 {[%clk 0:13:47]}  Ba2 {[%clk 0:11:15]} 31. Rd6 {[%clk 0:13:47]}  c5 {[%clk 0:11:15]} 32. Rd7 {[%clk 0:13:47]}  Re5 {[%clk 0:11:15]} 33. Rxb7+ {[%clk 0:13:47]}  Kc8 {[%clk 0:11:15]} 34. Rxa7 {[%clk 0:13:47]}  Kb8 {[%clk 0:11:15]} 35. Rb7+ {[%clk 0:13:47]}  Kc8 {[%clk 0:11:15]} 36. Rb5 {[%clk 0:13:47]}  Kd8 {[%clk 0:11:15]} 37. h5 {[%clk 0:12:08]}  Bb1 {[%clk 0:10:46]} 38. b4 {[%clk 0:12:08]}  Rf5 {[%clk 0:10:46]} 39. bxc5 {[%clk 0:12:08]}  Ba2 {[%clk 0:10:46]} 40. h6 {[%clk 0:12:08]}  Rxf3 {[%clk 0:10:46]} 41. h7 {[%clk 0:12:08]}  Rxf2+ {[%clk 0:10:46]} 42. Kd3 {[%clk 0:12:08]} 1-0


[Site "http://www.Chess.com"]

[Event "FIDE World Rapid Chess Championship 2021"]
[White "Wieczorek, Oskar"]
[Black "Theodorou, Nikolas"]
[WhiteFideId "1133950"]
[BlackFideId "4262875"]
[WhiteElo "2367"]
[BlackElo "2559"]
[Result "0-1"]
[Round "05"]
[TimeControl "900+10"]
[Date "2021.12.26"]
[WhiteClock "0:00:50"]
[BlackClock "0:01:12"]

1. e4 {[%clk 0:01:43]}  e5 {[%clk 0:03:40]} 2. Nc3 {[%clk 0:01:43]}  Nf6 {[%clk 0:03:40]} 3. g3 {[%clk 0:01:43]}  Bc5 {[%clk 0:03:40]} 4. Bg2 {[%clk 0:01:43]}  d6 {[%clk 0:03:40]} 5. Nge2 {[%clk 0:01:43]}  Nc6 {[%clk 0:03:40]} 6. Na4 {[%clk 0:01:43]}  a5 {[%clk 0:03:40]} 7. Nxc5 {[%clk 0:01:43]}  dxc5 {[%clk 0:03:40]} 8. O-O {[%clk 0:01:43]}  Qd6 {[%clk 0:03:40]} 9. d3 {[%clk 0:01:43]}  h6 {[%clk 0:03:40]} 10. h3 {[%clk 0:01:43]}  b6 {[%clk 0:03:40]} 11. b3 {[%clk 0:01:43]}  Bb7 {[%clk 0:03:40]} 12. Bb2 {[%clk 0:01:43]}  O-O-O {[%clk 0:03:40]} 13. f4 {[%clk 0:01:43]}  Kb8 {[%clk 0:03:40]} 14. Kh1 {[%clk 0:01:43]}  Nd7 {[%clk 0:03:40]} 15. a3 {[%clk 0:01:43]}  h5 {[%clk 0:03:40]} 16. f5 {[%clk 0:01:43]}  a4 {[%clk 0:03:40]} 17. b4 {[%clk 0:01:43]}  cxb4 {[%clk 0:03:40]} 18. axb4 {[%clk 0:01:43]}  Qxb4 {[%clk 0:03:40]} 19. Bc3 {[%clk 0:01:43]}  Qb5 {[%clk 0:03:40]} 20. Qd2 {[%clk 0:01:43]}  Nc5 {[%clk 0:03:40]} 21. Rfb1 {[%clk 0:01:43]}  Qa6 {[%clk 0:03:40]} 22. Qg5 {[%clk 0:01:43]}  g6 {[%clk 0:03:40]} 23. fxg6 {[%clk 0:01:43]}  fxg6 {[%clk 0:03:40]} 24. Bxe5 {[%clk 0:01:43]}  Nxe5 {[%clk 0:03:40]} 25. Qxe5 {[%clk 0:01:43]}  Rhe8 {[%clk 0:03:40]} 26. Qg5 {[%clk 0:01:43]}  Nxe4 {[%clk 0:03:40]} 27. dxe4 {[%clk 0:01:43]}  Qxe2 {[%clk 0:03:40]} 28. Re1 {[%clk 0:01:43]}  Qxc2 {[%clk 0:03:40]} 29. Rac1 {[%clk 0:01:43]}  Qf2 {[%clk 0:03:40]} 30. Rf1 {[%clk 0:01:43]}  Qd2 {[%clk 0:03:40]} 31. Qxg6 {[%clk 0:01:43]}  Qxg2+ {[%clk 0:03:40]} 32. Kxg2 {[%clk 0:01:43]}  Bxe4+ {[%clk 0:03:40]} 33. Qxe4 {[%clk 0:01:43]}  Rxe4 {[%clk 0:03:40]} 34. Rf7 {[%clk 0:01:43]}  Rc8 {[%clk 0:03:40]} 35. Kf3 {[%clk 0:01:43]}  Rb4 {[%clk 0:03:40]} 36. g4 {[%clk 0:01:43]}  hxg4+ {[%clk 0:03:40]} 37. hxg4 {[%clk 0:01:43]}  a3 {[%clk 0:01:42]} 38. g5 {[%clk 0:02:03]}  a2 {[%clk 0:01:42]} 39. Ra1 {[%clk 0:02:03]}  Ra4 {[%clk 0:01:42]} 40. Rf4 {[%clk 0:02:03]}  Ra5 {[%clk 0:01:42]} 41. Kg4 {[%clk 0:02:03]}  Rd8 {[%clk 0:01:42]} 42. Kh5 {[%clk 0:02:03]}  Rh8+ {[%clk 0:01:42]} 43. Kg4 {[%clk 0:02:03]}  Rh2 {[%clk 0:01:42]} 44. Rf5 {[%clk 0:00:50]}  Rg2+ {[%clk 0:01:12]} 0-1


[Site "http://www.Chess.com"]

[Event "FIDE World Rapid Chess Championship 2021"]
[White "Sargsyan, Shant"]
[Black "Ghaem Maghami, Ehsan"]
[WhiteFideId "13306766"]
[BlackFideId "12500739"]
[WhiteElo "2344"]
[BlackElo "2553"]
[Result "1-0"]
[Round "05"]
[TimeControl "900+10"]
[Date "2021.12.26"]
[WhiteClock "0:12:20"]
[BlackClock "0:11:47"]

1. d4 {[%clk 0:12:20]}  Nf6 {[%clk 0:11:47]} 2. c4 {[%clk 0:12:20]}  e6 {[%clk 0:11:47]} 3. Nf3 {[%clk 0:12:20]}  c5 {[%clk 0:11:47]} 4. Nc3 {[%clk 0:12:20]}  cxd4 {[%clk 0:11:47]} 5. Nxd4 {[%clk 0:12:20]}  Bb4 {[%clk 0:11:47]} 6. g3 {[%clk 0:12:20]}  Ne4 {[%clk 0:11:47]} 7. Qc2 {[%clk 0:12:20]}  Nxc3 {[%clk 0:11:47]} 8. bxc3 {[%clk 0:12:20]}  Be7 {[%clk 0:11:47]} 9. Bg2 {[%clk 0:12:20]}  Qc7 {[%clk 0:11:47]} 10. Nb5 {[%clk 0:12:20]}  Qxc4 {[%clk 0:11:47]} 11. Qb3 {[%clk 0:12:20]}  Qxb3 {[%clk 0:11:47]} 12. axb3 {[%clk 0:12:20]}  Kd8 {[%clk 0:11:47]} 13. Bf4 {[%clk 0:12:20]}  Na6 {[%clk 0:11:47]} 14. Rxa6 {[%clk 0:12:20]}  bxa6 {[%clk 0:11:47]} 15. Bc7+ {[%clk 0:12:20]}  Ke8 {[%clk 0:11:47]} 16. Nd6+ {[%clk 0:12:20]} 1-0


[Site "http://www.Chess.com"]

[Event "FIDE World Rapid Chess Championship 2021"]
[White "Parligras, Mircea-Emilian"]
[Black "Mitrabha, Guha"]
[WhiteFideId "1204297"]
[BlackFideId "5057000"]
[WhiteElo "2550"]
[BlackElo "2107"]
[Result "1/2-1/2"]
[Round "05"]
[TimeControl "900+10"]
[Date "2021.12.26"]
[WhiteClock "0:00:53"]
[BlackClock "0:00:43"]

1. d4 {[%clk 0:00:53]}  Nf6 {[%clk 0:00:43]} 2. c4 {[%clk 0:00:53]}  e6 {[%clk 0:00:43]} 3. Nf3 {[%clk 0:00:53]}  d5 {[%clk 0:00:43]} 4. Nc3 {[%clk 0:00:53]}  dxc4 {[%clk 0:00:43]} 5. e4 {[%clk 0:00:53]}  b5 {[%clk 0:00:43]} 6. e5 {[%clk 0:00:53]}  Nd5 {[%clk 0:00:43]} 7. Nxb5 {[%clk 0:00:53]}  Nb6 {[%clk 0:00:43]} 8. Be2 {[%clk 0:00:53]}  Nc6 {[%clk 0:00:43]} 9. O-O {[%clk 0:00:53]}  Bb7 {[%clk 0:00:43]} 10. Be3 {[%clk 0:00:53]}  Qd7 {[%clk 0:00:43]} 11. b3 {[%clk 0:00:53]}  a6 {[%clk 0:00:43]} 12. Nc3 {[%clk 0:00:53]}  cxb3 {[%clk 0:00:43]} 13. axb3 {[%clk 0:00:53]}  Nb4 {[%clk 0:00:43]} 14. Qb1 {[%clk 0:00:53]}  Be7 {[%clk 0:00:43]} 15. Rc1 {[%clk 0:00:53]}  O-O {[%clk 0:00:43]} 16. Ne4 {[%clk 0:00:53]}  N6d5 {[%clk 0:00:43]} 17. Neg5 {[%clk 0:00:53]}  g6 {[%clk 0:00:43]} 18. Ne4 {[%clk 0:00:53]}  Nxe3 {[%clk 0:00:43]} 19. fxe3 {[%clk 0:00:53]}  Bxe4 {[%clk 0:00:43]} 20. Qxe4 {[%clk 0:00:53]}  Rfc8 {[%clk 0:00:43]} 21. Rc4 {[%clk 0:00:53]}  Rab8 {[%clk 0:00:43]} 22. Rac1 {[%clk 0:00:53]}  Nd5 {[%clk 0:00:43]} 23. Qd3 {[%clk 0:00:53]}  Bf8 {[%clk 0:00:43]} 24. Nd2 {[%clk 0:00:53]}  Bh6 {[%clk 0:00:43]} 25. Nf1 {[%clk 0:00:53]}  Qb5 {[%clk 0:00:43]} 26. Bf3 {[%clk 0:00:53]}  c5 {[%clk 0:00:43]} 27. dxc5 {[%clk 0:00:53]}  Rxc5 {[%clk 0:00:43]} 28. Qc2 {[%clk 0:00:53]}  Rxc4 {[%clk 0:00:43]} 29. bxc4 {[%clk 0:00:53]}  Nxe3 {[%clk 0:00:43]} 30. cxb5 {[%clk 0:00:53]}  Nxc2 {[%clk 0:00:43]} 31. Rxc2 {[%clk 0:00:53]}  Rxb5 {[%clk 0:00:43]} 32. Be2 {[%clk 0:00:53]}  Ra5 {[%clk 0:00:43]} 33. Kf2 {[%clk 0:00:53]}  Bf4 {[%clk 0:00:43]} 34. Rc6 {[%clk 0:00:53]}  Bxe5 {[%clk 0:00:43]} 35. Rxa6 {[%clk 0:00:53]}  Bd4+ {[%clk 0:00:43]} 36. Kf3 {[%clk 0:00:53]}  Rc5 {[%clk 0:00:43]} 37. Bd3 {[%clk 0:00:53]}  Kg7 {[%clk 0:00:43]} 38. Nd2 {[%clk 0:00:53]}  Re5 {[%clk 0:00:43]} 39. Nc4 {[%clk 0:00:53]}  Re1 {[%clk 0:00:43]} 40. Rd6 {[%clk 0:00:53]}  Bg1 {[%clk 0:00:43]} 41. h3 {[%clk 0:00:53]}  f5 {[%clk 0:00:43]} 42. g4 {[%clk 0:00:53]}  Kf6 {[%clk 0:00:43]} 43. Be2 {[%clk 0:00:53]}  Rc1 {[%clk 0:00:43]} 44. g5+ {[%clk 0:00:53]}  Kxg5 {[%clk 0:00:43]} 45. Rxe6 {[%clk 0:00:53]}  Bd4 {[%clk 0:00:43]} 46. Rd6 {[%clk 0:00:53]}  Bc5 {[%clk 0:00:43]} 47. Rd5 {[%clk 0:00:53]}  Bb4 {[%clk 0:00:43]} 48. Ne5 {[%clk 0:00:53]}  Bc3 {[%clk 0:00:43]} 49. Nd3 {[%clk 0:00:53]}  Ra1 {[%clk 0:00:43]} 50. Rd7 {[%clk 0:00:53]}  h5 {[%clk 0:00:43]} 51. Rd6 {[%clk 0:00:53]}  h4 {[%clk 0:00:43]} 52. Nf4 {[%clk 0:00:53]}  Bf6 {[%clk 0:00:43]} 53. Ne6+ {[%clk 0:00:53]}  Kh6 {[%clk 0:00:43]} 54. Nf8 {[%clk 0:00:53]}  Ra3+ {[%clk 0:00:43]} 55. Kf2 {[%clk 0:00:53]}  Kg7 {[%clk 0:00:43]} 56. Ne6+ {[%clk 0:00:53]}  Kh6 {[%clk 0:00:43]} 57. Nf4 {[%clk 0:00:53]}  Kg5 {[%clk 0:00:43]} 58. Ne6+ {[%clk 0:00:53]}  Kh6 {[%clk 0:00:43]} 59. Nf4 {[%clk 0:00:53]}  Kg5 {[%clk 0:00:43]} 60. Ne6+ {[%clk 0:00:53]}  Kh6 {[%clk 0:00:43]} 61. Nf4 {[%clk 0:00:53]} 1/2-1/2


[Site "http://www.Chess.com"]

[Event "FIDE World Rapid Chess Championship 2021"]
[White "Fridman, Daniel"]
[Black "Asadli, Vugar"]
[WhiteFideId "11600454"]
[BlackFideId "13405764"]
[WhiteElo "2542"]
[BlackElo "2309"]
[Result "1-0"]
[Round "05"]
[TimeControl "900+10"]
[Date "2021.12.26"]
[WhiteClock "0:05:22"]
[BlackClock "0:00:00"]

1. d4 {[%clk 0:05:22]}  Nf6 {[%clk 0:00:00]} 2. Nf3 {[%clk 0:05:22]}  e6 {[%clk 0:00:00]} 3. g3 {[%clk 0:05:22]}  b5 {[%clk 0:00:00]} 4. Bg2 {[%clk 0:05:22]}  Bb7 {[%clk 0:00:00]} 5. O-O {[%clk 0:05:22]}  Be7 {[%clk 0:00:00]} 6. Bg5 {[%clk 0:05:22]}  d6 {[%clk 0:00:00]} 7. Qd3 {[%clk 0:05:22]}  a6 {[%clk 0:00:00]} 8. Nbd2 {[%clk 0:05:22]}  Nbd7 {[%clk 0:00:00]} 9. c4 {[%clk 0:05:22]}  bxc4 {[%clk 0:00:00]} 10. Nxc4 {[%clk 0:05:22]}  O-O {[%clk 0:00:00]} 11. b4 {[%clk 0:05:22]}  c5 {[%clk 0:00:00]} 12. dxc5 {[%clk 0:05:22]}  dxc5 {[%clk 0:00:00]} 13. bxc5 {[%clk 0:05:22]}  Nxc5 {[%clk 0:00:00]} 14. Qe3 {[%clk 0:05:22]}  Nce4 {[%clk 0:00:00]} 15. Nfe5 {[%clk 0:05:22]}  Bd5 {[%clk 0:00:00]} 16. Bxe4 {[%clk 0:05:22]}  Nxe4 {[%clk 0:00:00]} 17. Bxe7 {[%clk 0:05:22]}  Qxe7 {[%clk 0:00:00]} 18. Nb6 {[%clk 0:05:22]}  Rae8 {[%clk 0:00:00]} 19. Ned7 {[%clk 0:05:22]}  Bb7 {[%clk 0:00:00]} 20. f3 {[%clk 0:05:22]}  Nf6 {[%clk 0:00:00]} 21. Nxf8 {[%clk 0:05:22]}  Qxf8 {[%clk 0:00:00]} 22. Rac1 {[%clk 0:05:22]}  h5 {[%clk 0:00:00]} 23. Qc5 {[%clk 0:05:22]}  Re7 {[%clk 0:00:00]} 24. Rfd1 {[%clk 0:05:22]}  g6 {[%clk 0:00:00]} 25. Nc8 {[%clk 0:05:22]}  Bxc8 {[%clk 0:00:00]} 26. Qxc8 {[%clk 0:05:22]}  Re8 {[%clk 0:00:00]} 27. Qxa6 {[%clk 0:05:22]}  Ra8 {[%clk 0:00:00]} 28. Qb7 {[%clk 0:05:22]}  Nd5 {[%clk 0:00:00]} 29. Qb2 {[%clk 0:05:22]}  Rb8 {[%clk 0:00:00]} 30. Qe5 {[%clk 0:05:22]}  Ra8 {[%clk 0:00:00]} 31. e4 {[%clk 0:05:22]}  Nb4 {[%clk 0:00:00]} 32. Rd2 {[%clk 0:05:22]}  h4 {[%clk 0:00:00]} 33. gxh4 {[%clk 0:05:22]}  Nxa2 {[%clk 0:00:00]} 34. Rcd1 {[%clk 0:05:22]}  Qe7 {[%clk 0:00:00]} 35. h5 {[%clk 0:05:22]} 1-0


[Site "http://www.Chess.com"]

[Event "FIDE World Rapid Chess Championship 2021"]
[White "Babazada, Khazar"]
[Black "Tari, Aryan"]
[WhiteFideId "13413554"]
[BlackFideId "1510045"]
[WhiteElo "2170"]
[BlackElo "2542"]
[Result "1/2-1/2"]
[Round "05"]
[TimeControl "900+10"]
[Date "2021.12.26"]
[WhiteClock "0:08:48"]
[BlackClock "0:03:19"]

1. e4 {[%clk 0:08:48]}  c6 {[%clk 0:03:19]} 2. d4 {[%clk 0:08:48]}  d5 {[%clk 0:03:19]} 3. Nc3 {[%clk 0:08:48]}  dxe4 {[%clk 0:03:19]} 4. Nxe4 {[%clk 0:08:48]}  Nf6 {[%clk 0:03:19]} 5. Nxf6+ {[%clk 0:08:48]}  exf6 {[%clk 0:03:19]} 6. c3 {[%clk 0:08:48]}  Bd6 {[%clk 0:03:19]} 7. Bd3 {[%clk 0:08:48]}  O-O {[%clk 0:03:19]} 8. Qc2 {[%clk 0:08:48]}  Re8+ {[%clk 0:03:19]} 9. Ne2 {[%clk 0:08:48]}  h5 {[%clk 0:03:19]} 10. O-O {[%clk 0:08:48]}  h4 {[%clk 0:03:19]} 11. Bd2 {[%clk 0:08:48]}  Nd7 {[%clk 0:03:19]} 12. Rfe1 {[%clk 0:08:48]}  Nf8 {[%clk 0:03:19]} 13. Nf4 {[%clk 0:08:48]}  Bd7 {[%clk 0:03:19]} 14. Rxe8 {[%clk 0:08:48]}  Qxe8 {[%clk 0:03:19]} 15. Re1 {[%clk 0:08:48]}  Qb8 {[%clk 0:03:19]} 16. g3 {[%clk 0:08:48]}  Qc7 {[%clk 0:03:19]} 17. Bc4 {[%clk 0:08:48]}  Re8 {[%clk 0:03:19]} 18. Rxe8 {[%clk 0:08:48]}  Bxe8 {[%clk 0:03:19]} 19. Qf5 {[%clk 0:08:48]}  hxg3 {[%clk 0:03:19]} 20. hxg3 {[%clk 0:08:48]}  Qe7 {[%clk 0:03:19]} 21. Bd3 {[%clk 0:08:48]}  Bd7 {[%clk 0:03:19]} 22. Qh5 {[%clk 0:08:48]}  g6 {[%clk 0:03:19]} 23. Qh6 {[%clk 0:08:48]}  f5 {[%clk 0:03:19]} 24. Bc4 {[%clk 0:08:48]}  Ne6 {[%clk 0:03:19]} 25. Bxe6 {[%clk 0:08:48]}  Bxe6 {[%clk 0:03:19]} 26. Nxg6 {[%clk 0:08:48]}  Qf6 {[%clk 0:03:19]} 27. Nh4 {[%clk 0:08:48]}  Qxh6 {[%clk 0:03:19]} 28. Bxh6 {[%clk 0:08:48]}  f4 {[%clk 0:03:19]} 29. Bxf4 {[%clk 0:08:48]}  Bxf4 {[%clk 0:03:19]} 30. gxf4 {[%clk 0:08:48]}  Bxa2 {[%clk 0:03:19]} 31. Kg2 {[%clk 0:08:48]}  Bd5+ {[%clk 0:03:19]} 32. Kg3 {[%clk 0:08:48]}  Kg7 {[%clk 0:03:19]} 33. Nf5+ {[%clk 0:08:48]}  Kf6 {[%clk 0:03:19]} 34. Nd6 {[%clk 0:08:48]}  b5 {[%clk 0:03:19]} 35. f5 {[%clk 0:08:48]}  Kg5 {[%clk 0:03:19]} 36. f3 {[%clk 0:08:48]}  a5 {[%clk 0:03:19]} 37. f4+ {[%clk 0:08:48]}  Kf6 {[%clk 0:03:19]} 38. Kf2 {[%clk 0:08:48]}  Ke7 {[%clk 0:03:19]} 39. Nb7 {[%clk 0:08:48]}  a4 {[%clk 0:03:19]} 40. Ke3 {[%clk 0:08:48]}  Kf6 {[%clk 0:03:19]} 41. Nd6 {[%clk 0:08:48]}  Ke7 {[%clk 0:03:19]} 42. Nb7 {[%clk 0:08:48]} 1/2-1/2


[Site "http://www.Chess.com"]